fUSD/lending_fUSD_20260131
["ID","MTS","AMOUNT","RATE_DAILY","PERIOD"]
[404094681,1769823041044,-162.0,0.000175,2]
[404094682,1769823041053,-162.0,0.000175,2]
[404094683,1769823041063,-1300.0,0.000175,6]
[404094684,1769823041073,-291.15,0.00017534,2]
[404094685,1769823041082,-772.81,0.00017555,2]
[404094686,1769823041092,-167.24,0.00017588,2]
[404094687,1769823041103,-369.86439863,0.00017594,2]
[404094688,1769823041113,-195.0,0.00017594,2]
[404094689,1769823041123,-248.38760817,0.00017594,2]
[404094690,1769823041133,-1700.0,0.000176,6]
[404094691,1769823041142,-652.599,0.00017601,2]
[404094692,1769823041152,-183.265,0.00017601,2]
[404094693,1769823041162,-1680.0,0.00017683,2]
[404094694,1769823041171,-166.866807,0.00017695,2]
[404094695,1769823041181,-1124.14,0.00017695,2]
[404094696,1769823041191,-1124.14,0.00017695,2]
[404094697,1769823041200,-1124.14,0.00017695,2]
[404094698,1769823041211,-1124.14,0.00017695,2]
[404094699,1769823041220,-1124.14,0.00017695,2]
[404094700,1769823041230,-1295.57,0.00017695,2]
[404094701,1769823041240,-916.0,0.00017695,2]
[404094702,1769823041250,-1031.526,0.00017695,2]
[404094703,1769823041260,-5934.0,0.00017695,2]
[404094704,1769823041270,-2444.0,0.00017695,2]
[404094705,1769823041279,-3965.8870976,0.00017699,2]
[404094706,1769823041289,-3500.0,0.000177,2]
[404094707,1769823041309,-1171.80288263,0.000177,6]
[404094708,1769823041407,-347.64573352,0.000177,6]
[404094709,1769823041420,-264.121972,0.000177,6]
[404094710,1769823041433,-316.42941185,0.000177,6]
[404094711,1769823041446,-38.32107769,0.00017701,2]
[404094745,1769823046367,-1233.02,0.00017017,2]
[404094746,1769823046377,-1340.67892231,0.00017701,2]
[404094747,1769823046387,-246.0,0.00017749,2]
[404094748,1769823046397,-400.0,0.000178,6]
[404094749,1769823046407,-246.0,0.000178,2]
[404094750,1769823046416,-772.81,0.00017829,2]
[404094751,1769823046426,-166.66,0.00017838,2]
[404094752,1769823046439,-234.40738246,0.00017839,2]
[404094753,1769823046598,-998.61261754,0.00017839,2]
[404094754,1769823046608,-313.34311276,0.00017839,2]
[404094755,1769823046744,-919.67688724,0.00017839,2]
[404094757,1769823046754,-1233.02,0.00017839,2]
[404094759,1769823046764,-1233.02,0.00017839,2]
[404094762,1769823046775,-1233.02,0.00017839,2]
[404094763,1769823046784,-1233.02,0.00017839,2]
[404094764,1769823046794,-1233.02,0.00017839,2]
[404094765,1769823046803,-1233.02,0.00017839,2]
[404094766,1769823046814,-1233.02,0.00017839,2]
[404094767,1769823046824,-1233.02,0.00017839,2]
[404094768,1769823046834,-1233.02,0.00017839,2]
[404094769,1769823046843,-1233.02,0.00017839,2]
[404094770,1769823046853,-1233.02,0.00017839,2]
[404094771,1769823046862,-1233.02,0.00017839,2]
[404094773,1769823046876,-1121.93805802,0.00017839,2]
[404094774,1769823046888,-111.08194198,0.00017839,2]
[404094775,1769823046897,-1233.02,0.00017839,2]
[404094776,1769823046907,-1233.02,0.00017839,2]
[404094777,1769823046917,-1073.03928925,0.00017839,2]
[404094778,1769823046930,-1391.58071075,0.00017839,2]
[404094779,1769823046941,-788.41928925,0.00017839,2]
[404095391,1769823272845,150.0,0.000143,2]
[404095392,1769823272912,150.0,0.000156,2]
[404095429,1769823714813,166.66,0.00015428,2]
[404095430,1769823715206,166.66,0.00015753,2]
[404095435,1769823845774,5354.0,0.000158,3]
[404095436,1769823850057,240.22,0.000152,2]
[404095461,1769823969331,5531.0,0.000158,5]
[404095477,1769824231307,-290.4126,0.000159,2]
[404095479,1769824231318,-317.26535469,0.00015995,2]
[404095483,1769824231360,-374.7451931,0.00015995,2]
[404095484,1769824231372,-307.98945221,0.00015995,2]
[404095485,1769824231382,-300.0,0.00015999,2]
[404095486,1769824231391,-1200.0,0.00015999,2]
[404095487,1769824231401,-14369.53829309,0.00016,5]
[404095488,1769824231412,-532.892,0.00016,2]
[404095489,1769824231422,-166.66,0.00016078,2]
[404095490,1769824231431,-200.0,0.00016258,2]
[404095491,1769824231442,-1000.0,0.00016261,2]
[404095492,1769824231453,-167.24,0.00016322,2]
[404095493,1769824231462,-150.99,0.00016373,2]
[404095494,1769824231473,-500.0,0.00016373,2]
[404095495,1769824231482,-166.66,0.00016403,2]
[404095496,1769824231492,-237.90409987,0.00016438,3]
[404095497,1769824231502,-174.61919141,0.0001649,2]
[404095498,1769824231512,-322.6107,0.0001649,2]
[404095499,1769824231522,-209.40437684,0.0001649,2]
[404095500,1769824231532,-566.75415587,0.0001649,2]
[404095501,1769824231547,-151.0,0.00016517,2]
[404095502,1769824231556,-151.0,0.00016517,2]
[404095503,1769824231567,-151.0,0.00016521,2]
[404095504,1769824231577,-156.08,0.00016521,2]
[404095505,1769824231587,-217.15233878,0.00016545,2]
[404095506,1769824231597,-225.18697532,0.000166,2]
[404095507,1769824231607,-233.51889341,0.00016655,2]
[404095508,1769824231617,-721.12765535,0.00016697,2]
[404095509,1769824231628,-854.2589148,0.00016697,2]
[404095510,1769824231638,-1654.5,0.00016698,2]
[404095512,1769824231648,-10287.96,0.00016707,2]
[404095515,1769824231659,-242.15909246,0.0001671,2]
[404095517,1769824231668,-166.66,0.00016728,2]
[404095519,1769824231678,-838.07310875,0.00016748,2]
[404095520,1769824231687,-967.34,0.00016751,2]
[404095522,1769824231697,-251.11897888,0.00016765,2]
[404095524,1769824231707,-188.28,0.00016765,2]
[404095526,1769824231717,-260.4103811,0.0001682,2]
[404095528,1769824231726,-270.0455652,0.00016875,2]
[404095530,1769824231735,-201.83261144,0.000169,2]
[404095532,1769824231745,-504.18825898,0.00016921,2]
[404095534,1769824231755,-280.03725112,0.0001693,2]
[404095536,1769824231765,-500.0,0.00016932,2]
[404095538,1769824231775,-290.39862941,0.00016985,2]
[404095540,1769824231787,-300.0,0.00016986,4]
[404095542,1769824231796,-250.0,0.00017,2]
[404095544,1769824231806,-444.61,0.00017017,2]
[404095546,1769824231815,-181.08010149,0.00017038,2]
[404095548,1769824231826,-301.1433787,0.0001704,2]
[404095550,1769824231836,-166.66,0.00017053,2]
[404095552,1769824231845,-180.0,0.00017056,2]
[404095554,1769824231857,-180.0,0.00017226,2]
[404095556,1769824231866,-885.86649465,0.00017245,2]
[404095558,1769824231875,-180.0,0.00017259,2]
[404095560,1769824231885,-180.0,0.00017278,2]
[404095562,1769824231894,-180.0,0.00017305,2]
[404095564,1769824231905,-193.58026105,0.0001738,2]
[404095566,1769824231915,-341.49852629,0.0001738,2]
[404095569,1769824231929,-510.86137164,0.0001738,2]
[404095571,1769824231939,-691.2081,0.0001738,2]
[404095573,1769824231948,-200.0,0.0001739,2]
[404095574,1769824231957,-180.0,0.00017394,2]
[404095575,1769824231967,-180.0,0.00017491,2]
[404095576,1769824231976,-300.0,0.00017534,5]
[404095577,1769824231987,-1680.0,0.0001758,2]
[404095578,1769824231996,-187.78006525,0.00017586,2]
[404095579,1769824232007,-272.96713992,0.0001764,2]
[404095580,1769824232016,-455.30725,0.0001766,2]
[404095581,1769824232027,-455.30726,0.0001766,2]
[404095582,1769824232036,-200.0,0.00017661,2]
[404095583,1769824232045,-3317.17753709,0.0001767,2]
[404095584,1769824232055,-150.517,0.00017679,2]
[404095585,1769824232065,-1270.529,0.00017679,2]
[404095586,1769824232075,-919.15,0.00017679,2]
[404095587,1769824232085,-5934.0,0.00017679,2]
[404095588,1769824232095,-2444.0,0.00017679,2]
[404095589,1769824232104,-3317.17753704,0.00017696,2]
[404095590,1769824232114,-1510.0,0.000177,2]
[404095591,1769824232124,-180.0,0.00017717,2]
[404095592,1769824232134,-3317.17753704,0.00017721,2]
[404095593,1769824232144,-1233.02,0.00017726,2]
[404095594,1769824232154,-154.82353453,0.00017732,2]
[404095595,1769824232163,-500.0,0.00017744,2]
[404095596,1769824232173,-500.0,0.00017744,2]
[404095597,1769824232182,-500.0,0.00017744,2]
[404095598,1769824232191,-500.0,0.00017744,2]
[404095599,1769824232201,-500.0,0.00017744,2]
[404095600,1769824232210,-500.0,0.00017744,2]
[404095601,1769824232219,-500.0,0.00017744,2]
[404095602,1769824232228,-500.0,0.00017744,2]
[404095603,1769824232239,-500.0,0.00017744,2]
[404095604,1769824232249,-500.0,0.00017744,2]
[404095605,1769824232259,-500.0,0.00017744,2]
[404095606,1769824232270,-500.0,0.00017744,2]
[404095607,1769824232283,-500.0,0.00017744,2]
[404095608,1769824232295,-500.0,0.00017744,2]
[404095609,1769824232306,-500.0,0.00017744,2]
[404095610,1769824232316,-518.80514085,0.00017744,2]
[404095611,1769824232326,-500.0,0.00017744,2]
[404095612,1769824232336,-500.0,0.00017744,2]
[404095613,1769824232346,-500.0,0.00017744,2]
[404095614,1769824232356,-500.0,0.00017744,2]
[404095615,1769824232366,-500.0,0.00017744,2]
[404095616,1769824232376,-500.0,0.00017744,2]
[404095617,1769824232386,-500.0,0.00017744,2]
[404095618,1769824232398,-500.0,0.00017744,2]
[404095619,1769824232409,-500.0,0.00017744,2]
[404095620,1769824232420,-500.0,0.00017744,2]
[404095621,1769824232429,-500.0,0.00017744,2]
[404095622,1769824232440,-500.0,0.00017744,2]
[404095623,1769824232451,-500.0,0.00017744,2]
[404095624,1769824232463,-500.0,0.00017744,2]
[404095625,1769824232477,-500.0,0.00017744,2]
[404095626,1769824232489,-500.0,0.00017744,2]
[404095627,1769824232499,-500.0,0.00017744,2]
[404095628,1769824232509,-500.0,0.00017744,2]
[404095629,1769824232519,-500.0,0.00017744,2]
[404095630,1769824232529,-500.0,0.00017744,2]
[404095631,1769824232540,-384.04129356,0.00017744,2]
[404095632,1769824232550,-500.0,0.00017744,2]
[404095633,1769824232563,-500.0,0.00017744,2]
[404095634,1769824232576,-500.0,0.00017744,2]
[404095635,1769824232587,-500.0,0.00017744,2]
[404095636,1769824232599,-382.20148051,0.00017744,2]
[404095637,1769824232609,-591.33497836,0.00017744,2]
[404095638,1769824232619,-591.33497835,0.00017744,2]
[404095639,1769824232630,-214.01,0.00017744,2]
[404095640,1769824232641,-8180.19025846,0.00017745,2]
[404095641,1769824232656,-663.7357518,0.00017745,2]
[404095642,1769824232673,-576.48351554,0.00017745,2]
[404095643,1769824232684,-1217.77443011,0.00017745,2]
[404095644,1769824232702,-18780.80905242,0.00017745,2]
[404095645,1769824232714,-637.62109106,0.00017745,2]
[404095646,1769824232725,-11260.45347406,0.00017745,2]
[404095647,1769824232737,-9412.5,0.00017745,2]
[404095648,1769824232753,-122.97964125,0.00017745,2]
[404095649,1769824232763,-3317.17753704,0.00017747,2]
[404095650,1769824232773,-364.68704246,0.0001775,2]
[404095651,1769824232787,-1000.0,0.00017772,2]
[404095652,1769824232797,-3317.17753704,0.00017772,2]
[404095653,1769824232807,-1051.60700386,0.00017776,2]
[404095654,1769824232819,-180.0,0.00017784,2]
[404095655,1769824232828,-918.64355495,0.00017793,2]
[404095656,1769824232838,-3317.17753704,0.00017798,2]
[404095657,1769824232848,-200.0,0.00017798,2]
[404095658,1769824232858,-155.599,0.00017799,2]
[404095659,1769824232870,-2500.0,0.000178,2]
[404095660,1769824232880,-164.25,0.000178,3]
[404095661,1769824232891,-4471.90049808,0.000178,2]
[404095662,1769824232901,-500.0,0.00017808,2]
[404095663,1769824232911,-500.0,0.00017821,2]
[404095664,1769824232922,-3317.17753704,0.00017823,2]
[404095665,1769824232931,-200.0,0.00017839,2]
[404095666,1769824232942,-200.0,0.00017839,2]
[404095667,1769824232953,-200.0,0.00017839,2]
[404095668,1769824232964,-1502.0,0.00017839,2]
[404095669,1769824232974,-1502.0,0.00017839,2]
[404095670,1769824232984,-1502.0,0.00017839,2]
[404095671,1769824232993,-1502.0,0.00017839,2]
[404095672,1769824233003,-1502.0,0.00017839,2]
[404095673,1769824233012,-1502.0,0.00017839,2]
[404095674,1769824233022,-1502.0,0.00017839,2]
[404095675,1769824233031,-1502.0,0.00017839,2]
[404095676,1769824233041,-1502.0,0.00017839,2]
[404095677,1769824233051,-1502.0,0.00017839,2]
[404095678,1769824233060,-455.30726,0.00017839,2]
[404095679,1769824233071,-455.30725,0.00017839,2]
[404095680,1769824233080,-455.30726,0.00017839,2]
[404095681,1769824233090,-455.30726,0.00017839,2]
[404095682,1769824233101,-200.0,0.00017839,2]
[404095683,1769824233111,-152.03,0.0001784,2]
[404095684,1769824233120,-246.0,0.00017843,2]
[404095685,1769824233130,-3317.17753704,0.00017849,2]
[404095686,1769824233140,-334.5472959,0.00017859,2]
[404095687,1769824233150,-500.0,0.00017863,2]
[404095688,1769824233160,-150.0,0.00017869,2]
[404095689,1769824233170,-3317.17753704,0.00017874,2]
[404095690,1769824233179,-150.0,0.00017876,2]
[404095691,1769824233189,-150.0,0.00017876,2]
[404095692,1769824233198,-271.19,0.00017886,2]
[404095693,1769824233207,-301.18,0.00017887,2]
[404095694,1769824233218,-444.87,0.00017894,2]
[404095695,1769824233228,-923.63,0.00017899,2]
[404095696,1769824233238,-161.09533852,0.000179,2]
[404095697,1769824233249,-1500.0,0.000179,2]
[404095698,1769824233259,-3317.17753704,0.000179,2]
[404095699,1769824233269,-182.25725899,0.000179,2]
[404095700,1769824233278,-120453.23866564,0.000179,2]
[404095701,1769824233288,-172.19563695,0.000179,2]
[404095702,1769824233298,-923.49117552,0.000179,2]
[404095703,1769824233307,-883.64372197,0.000179,2]
[404095704,1769824233318,-500.0,0.00017918,2]
[404095705,1769824233328,-150.0,0.00017948,2]
[404095706,1769824233338,-84.35186047,0.00017966,2]
[404095707,1769824233351,-161.64813953,0.00017966,2]
[404095708,1769824233361,-180.0,0.00017967,2]
[404095709,1769824233370,-36.33858478,0.00017972,2]
[404095710,1769824233381,-143.66141522,0.00017972,2]
[404095711,1769824233391,-317.5122008,0.00017972,2]
[404095712,1769824233404,-185.45974777,0.00017972,2]
[404095713,1769824233415,-310.0,0.00017973,2]
[404095714,1769824233426,-436.43025223,0.00017973,2]
[404095715,1769824233451,-64.39982408,0.00017973,2]
[404095716,1769824233462,-191.1102202,0.00017973,2]
[404095717,1769824233474,-308.8897798,0.00017973,2]
[404095718,1769824233484,-500.0,0.00017973,2]
[404095719,1769824233494,-186.99730964,0.00017973,2]
[404095720,1769824233505,-313.00269036,0.00017973,2]
[404095721,1769824233515,-500.0,0.00017973,2]
[404095722,1769824233525,-500.0,0.00017973,2]
[404095723,1769824233534,-500.0,0.00017973,2]
[404095724,1769824233544,-500.86590658,0.00017973,2]
[404095725,1769824233553,-161.50314053,0.00017973,2]
[404095726,1769824233563,-500.97312271,0.00017973,2]
[404095727,1769824233572,-500.0,0.00017973,2]
[404095728,1769824233582,-500.0,0.00017973,2]
[404095729,1769824233591,-500.0,0.00017973,2]
[404095730,1769824233601,-500.0,0.00017973,2]
[404095731,1769824233611,-500.0,0.00017973,2]
[404095732,1769824233620,-389.30480159,0.00017973,2]
[404095733,1769824233657,-110.69519841,0.00017973,2]
[404095734,1769824233667,-500.0,0.00017973,2]
[404095735,1769824233676,-500.0,0.00017973,2]
[404095736,1769824233686,-341.71160445,0.00017973,2]
[404095747,1769824237395,-151.0,0.00016521,2]
[404095748,1769824237404,-6576.0,0.00017679,2]
[404095749,1769824237414,-7.89884,0.00017973,2]
[404095750,1769824237426,-150.38955555,0.00017973,2]
[404095751,1769824237435,-500.0,0.00017973,2]
[404095752,1769824237446,-166.96334782,0.00017973,2]
[404095753,1769824237456,-685.84891068,0.00017973,2]
[404095754,1769824237702,-371.29108932,0.00017973,2]
[404095755,1769824237712,-1057.14,0.00017973,2]
[404095757,1769824237721,-134.98263121,0.00017973,2]
[404095758,1769824237733,-576.55739814,0.00017973,2]
[404095764,1769824239959,-511.4311016,0.00017973,2]
[404095765,1769824239972,-715.21886905,0.00017973,2]
[404095766,1769824239983,-382.96976728,0.0001799,2]
[404095767,1769824239994,-382.96976728,0.0001799,2]
[404095768,1769824240004,-382.96976728,0.0001799,2]
[404095769,1769824240013,-152.28,0.0001799,2]
[404095770,1769824240025,-152.28,0.0001799,2]
[404095771,1769824240038,-152.28,0.0001799,2]
[404095772,1769824240049,-152.28,0.0001799,2]
[404095773,1769824240059,-152.28,0.0001799,2]
[404095774,1769824240072,-152.28,0.0001799,2]
[404095775,1769824240082,-152.28,0.0001799,2]
[404095776,1769824240091,-152.28,0.0001799,2]
[404095777,1769824240101,-152.28,0.0001799,2]
[404095778,1769824240110,-152.28,0.0001799,2]
[404095779,1769824240119,-152.28,0.0001799,2]
[404095780,1769824240128,-152.28,0.0001799,2]
[404095781,1769824240137,-152.28,0.0001799,2]
[404095782,1769824240146,-152.28,0.0001799,2]
[404095784,1769824240157,-152.28,0.0001799,2]
[404095786,1769824240166,-152.28,0.0001799,2]
[404095787,1769824240175,-152.28,0.0001799,2]
[404095788,1769824240184,-152.28,0.0001799,2]
[404095789,1769824240193,-152.28,0.0001799,2]
[404095790,1769824240202,-1013.72655464,0.00017999,5]
[404095791,1769824240211,-1013.72655464,0.00017999,5]
[404095792,1769824240220,-1013.72655464,0.00017999,5]
[404095793,1769824240229,-1013.72655464,0.00017999,5]
[404095794,1769824240238,-709.55424199,0.00017999,5]
[404095795,1769824240305,-266.271,0.00017999,5]
[404095802,1769824243015,-37.90131265,0.00017999,5]
[404095803,1769824243025,-222.44729817,0.00017999,5]
[404095804,1769824243069,-500.00373366,0.00017999,5]
[404095805,1769824243154,-291.27552284,0.00017999,5]
[404095806,1769824243165,-923.63,0.00017999,2]
[404095807,1769824243175,-923.63,0.00017999,2]
[404095808,1769824243187,-923.63,0.00017999,2]
[404095809,1769824243197,-923.63,0.00017999,2]
[404095810,1769824243208,-923.63,0.00017999,2]
[404095811,1769824243218,-923.63,0.00017999,2]
[404095812,1769824243228,-680.78476958,0.00017999,2]
[404095813,1769824243903,-68.57624049,0.00017999,2]
[404095834,1769824245578,-174.26898993,0.00017999,2]
[404095835,1769824245598,-923.63,0.00017999,2]
[404095836,1769824245610,-186.10101007,0.00017999,2]
[404095837,1769824245661,-568.32,0.00017679,2]
[404095838,1769824245671,-737.52898993,0.00017999,2]
[404095839,1769824245680,-923.63,0.00017999,2]
[404095840,1769824245690,-366.69204414,0.00017999,2]
[404095841,1769824245813,-556.93795586,0.00017999,2]
[404095843,1769824245822,-923.63,0.00017999,2]
[404095845,1769824245832,-923.63,0.00017999,2]
[404095847,1769824245842,-25.39077087,0.00017999,2]
[404095888,1769824831404,171.0,0.000142,5]
[404095890,1769825142110,-151.0,0.00016769,2]
[404095891,1769825142130,-64.24812273,0.00016769,2]
[404095895,1769825431657,-151.0,0.00016751,2]
[404095896,1769825431667,-151.0,0.00016756,2]
[404095897,1769825431676,-104.4731261,0.00016856,2]
[404095898,1769825431687,-73.4668739,0.00016856,2]
[404095899,1769825431696,-150.0,0.00016895,2]
[404095900,1769825431705,-200.0,0.00016901,2]
[404095901,1769825431714,-215.38,0.0001694,3]
[404095902,1769825431723,-2895.7325,0.00017145,2]
[404095903,1769825431732,-168.0,0.00017576,2]
[404095904,1769825431741,-567.0,0.00017591,2]
[404095905,1769825431750,-2444.0,0.00017591,2]
[404095906,1769825431759,-1028.43625035,0.000176,2]
[404095984,1769825433162,-982.56374965,0.000176,2]
[404095985,1769825433176,-272.96713992,0.0001764,2]
[404095986,1769825433191,-1200.0,0.00017682,2]
[404095987,1769825433204,-205.0,0.00017683,2]
[404095988,1769825433217,-300.0,0.00017683,2]
[404095989,1769825433232,-219.96650151,0.00017684,2]
[404095990,1769825433248,-102.64419849,0.00017684,2]
[404095991,1769825433262,-216.0705446,0.00017684,2]
[404095992,1769825433279,-505.05711075,0.00017684,2]
[404095993,1769825433292,-174.61919141,0.00017684,2]
[404095994,1769825433305,-859.80605061,0.00017684,2]
[404095995,1769825433318,-854.2589148,0.00017684,2]
[404095996,1769825433332,-209.40437684,0.00017684,2]
[404095997,1769825433346,-200.343511,0.00017694,2]
[404095998,1769825433397,-108.656489,0.00017694,2]
[404095999,1769825433412,-150.0,0.00017695,2]
[404096000,1769825433427,-69.8185521,0.00017695,2]
[404096001,1769825433441,-80.1814479,0.00017695,2]
[404096002,1769825433451,-177.94,0.00017698,2]
[404096003,1769825433461,-413.403511,0.00017699,2]
[404096004,1769825433521,-86.596489,0.00017699,2]
[404096005,1769825433531,-500.0,0.00017699,2]
[404096006,1769825433540,-150.0,0.000177,2]
[404096007,1769825433550,-200.0,0.00017735,2]
[404096008,1769825433559,-43.82578496,0.00017739,2]
[404096009,1769825433571,-513.89121504,0.00017739,2]
[404096010,1769825433580,-217.15233878,0.00017739,2]
[404096011,1769825433590,-500.0,0.00017754,2]
[404096012,1769825433599,-355.02744578,0.00017754,2]
[404096013,1769825433612,-144.97255422,0.00017754,2]
[404096014,1769825433621,-109.62244578,0.00017772,2]
[404096015,1769825434286,-43.59260184,0.00017772,2]
[404096016,1769825434326,-300.0,0.00017786,2]
[404096017,1769825434339,-225.18697532,0.00017794,2]
[404096018,1769825434348,-500.0,0.00017809,2]
[404096019,1769825434357,-500.0,0.00017809,2]
[404096020,1769825434367,-150.0,0.00017828,2]
[404096021,1769825434376,-233.51889341,0.00017849,2]
[404096022,1769825434385,-377.0,0.00017862,2]
[404096023,1769825434395,-500.0,0.00017863,2]
[404096024,1769825434403,-500.0,0.00017863,2]
[404096025,1769825434414,-426.314,0.00017874,2]
[404096026,1769825434424,-878.1766,0.00017899,2]
[404096027,1769825434434,-161.09533848,0.000179,2]
[404096028,1769825434444,-2500.0,0.000179,2]
[404096029,1769825434453,-10779.04553745,0.000179,2]
[404096030,1769825434462,-1904.91990788,0.000179,2]
[404096031,1769825434471,-172.1956369,0.000179,2]
[404096032,1769825434481,-4099.83341854,0.000179,2]
[404096033,1769825434490,-1815.10633301,0.000179,2]
[404096034,1769825434500,-164.75369211,0.000179,2]
[404096035,1769825434509,-361.28689848,0.000179,2]
[404096036,1769825434518,-242.15909246,0.00017904,2]
[404096037,1769825434527,-500.0,0.00017918,2]
[404096038,1769825434536,-251.11897888,0.00017959,2]
[404096039,1769825434545,-500.0,0.00017973,2]
[404096040,1769825434554,-500.0,0.00017973,2]
[404096041,1769825434564,-500.0,0.00017973,2]
[404096042,1769825434573,-500.0,0.00017973,2]
[404096043,1769825434582,-500.36446244,0.00017973,2]
[404096044,1769825434591,-500.0,0.00017973,2]
[404096045,1769825434600,-500.0,0.00017973,2]
[404096046,1769825434609,-500.0,0.00017973,2]
[404096047,1769825434618,-500.0,0.00017973,2]
[404096048,1769825434627,-500.0,0.00017973,2]
[404096049,1769825434639,-500.0,0.00017973,2]
[404096050,1769825434650,-500.0,0.00017973,2]
[404096051,1769825434659,-500.0,0.00017973,2]
[404096052,1769825434668,-500.0,0.00017973,2]
[404096053,1769825434677,-500.0,0.00017973,2]
[404096054,1769825434687,-500.0,0.00017973,2]
[404096055,1769825434696,-500.0,0.00017973,2]
[404096056,1769825434705,-285.35,0.00017973,2]
[404096057,1769825434713,-10902.9369215,0.00017989,2]
[404096058,1769825434723,-200.0,0.00017999,2]
[404096059,1769825434732,-200.0,0.00017999,2]
[404096060,1769825434742,-200.0,0.00017999,2]
[404096061,1769825434751,-500.0,0.00017999,2]
[404096062,1769825434760,-500.0,0.00017999,2]
[404096063,1769825434769,-500.0,0.00017999,2]
[404096064,1769825434779,-500.0,0.00017999,2]
[404096065,1769825434788,-500.0,0.00017999,2]
[404096066,1769825434798,-500.0,0.00017999,2]
[404096067,1769825434807,-500.0,0.00017999,2]
[404096068,1769825434816,-500.0,0.00017999,2]
[404096069,1769825434825,-500.0,0.00017999,2]
[404096070,1769825434834,-500.0,0.00017999,2]
[404096071,1769825434844,-500.0,0.00017999,2]
[404096072,1769825434853,-500.0,0.00017999,2]
[404096073,1769825434863,-500.0,0.00017999,2]
[404096074,1769825434872,-500.0,0.00017999,2]
[404096075,1769825434881,-500.0,0.00017999,2]
[404096076,1769825434890,-500.0,0.00017999,2]
[404096077,1769825434899,-500.0,0.00017999,2]
[404096078,1769825434908,-500.0,0.00017999,2]
[404096079,1769825434919,-211.1446379,0.00017999,2]
[404096080,1769825434928,-200.0,0.00017999,2]
[404096081,1769825434938,-237.46997072,0.00017999,2]
[404096082,1769825434947,-556.5976032,0.00017999,2]
[404096083,1769825434956,-168.56617344,0.00017999,2]
[404096084,1769825434966,-500.0,0.00017999,2]
[404096085,1769825434975,-500.0,0.00017999,2]
[404096086,1769825434984,-557.64501565,0.00017999,2]
[404096087,1769825434994,-165.7609139,0.00017999,2]
[404096088,1769825435003,-500.0,0.00017999,2]
[404096089,1769825435012,-222.71886579,0.00017999,2]
[404096090,1769825435022,-500.0,0.00017999,2]
[404096091,1769825435031,-500.0,0.00017999,2]
[404096092,1769825435040,-500.0,0.00017999,2]
[404096093,1769825435050,-500.0,0.00017999,2]
[404096094,1769825435059,-500.0,0.00017999,2]
[404096095,1769825435069,-500.0,0.00017999,2]
[404096096,1769825435078,-500.0,0.00017999,2]
[404096097,1769825435087,-500.0,0.00017999,2]
[404096098,1769825435096,-500.0,0.00017999,2]
[404096099,1769825435105,-500.0,0.00017999,2]
[404096100,1769825435115,-500.0,0.00017999,2]
[404096101,1769825435124,-500.0,0.00017999,2]
[404096102,1769825435133,-500.0,0.00017999,2]
[404096103,1769825435142,-500.0,0.00017999,2]
[404096104,1769825435154,-500.0,0.00017999,2]
[404096105,1769825435164,-500.0,0.00017999,2]
[404096106,1769825435173,-526.12495359,0.00017999,2]
[404096107,1769825435182,-500.0,0.00017999,2]
[404096108,1769825435192,-500.0,0.00017999,2]
[404096109,1769825435201,-500.0,0.00017999,2]
[404096110,1769825435210,-500.0,0.00017999,2]
[404096111,1769825435219,-500.0,0.00017999,2]
[404096112,1769825435229,-500.0,0.00017999,2]